bitfinex-derivatives/quotes_ETHF0:USTF0_20241104
["timestamp","ask_amount","ask_price","bid_price","bid_amount"]
[1730704102950,5.06624065,2478.6,2478.5,0.60062771]
[1730704103851,1.85844065,2478.6,2478.5,0.60062771]
[1730704104054,5.06624065,2478.6,2478.5,0.60062771]
[1730704104246,9.10064065,2478.6,2478.5,0.60062771]
[1730704104450,0.40376,2478.3,2478.1,0.40379]
[1730704104755,1.87543065,2478.2,2478.1,0.40379]
[1730704104948,2.29513065,2478.2,2478.1,2.12532194]
[1730704105853,2.29513065,2478.2,2478.1,2.12531652]
[1730704106047,1.45473065,2478.4,2478.1,1.72152652]
[1730704106349,1.45473065,2478.4,2478.3,0.40375]
[1730704106552,1.45473065,2478.4,2478.3,1.16512726]
[1730704106755,1.45473065,2478.4,2478.3,1.00157791]
[1730704107253,1.45473065,2478.4,2478.3,1.601533]
[1730704107456,1.45473065,2478.4,2478.3,1.60151358]
[1730704108249,1.85847065,2478.4,2478.3,1.19775358]
[1730704109754,1.85847065,2478.4,2478.3,0.76115358]
[1730704110150,1.85847065,2478.4,2478.1,0.4205]
[1730704110151,1.45473065,2478.4,2478.1,0.4205]
[1730704110351,1.85851065,2478.2,2478.1,0.4205]
[1730704110555,1.85851065,2478.2,2478.1,1.98021397]
[1730704110750,2.30861065,2478.2,2478.1,2.14143238]
[1730704110948,1.90483065,2478.2,2478.1,2.54522238]
[1730704111148,0.4501,2478.2,2478.1,2.54522238]
[1730704111660,0.4232,2478.3,2478.1,2.54522238]
[1730704111962,0.4232,2478.3,2478.2,0.76111117]
[1730704112257,0.82696,2478.3,2478.2,0.76111117]
[1730704113757,0.4232,2478.3,2478.2,0.56495839]
[1730704113960,0.4232,2478.3,2478.2,1.16476108]
[1730704114162,0.82696,2478.3,2478.2,0.76098108]
[1730704115463,0.82696,2478.3,2478.2,0.76091319]
[1730704115660,0.82696,2478.3,2478.2,1.16469319]
[1730704115859,0.4232,2478.3,2478.2,0.76091319]
[1730704116159,0.82943,2478.5,2478.3,0.40375]
[1730704116365,0.82943,2478.5,2478.4,0.76084678]
[1730704117458,0.82943,2478.5,2478.4,0.5997348]
[1730704117657,0.82943,2478.5,2478.4,0.76057912]
[1730704117860,0.4257,2478.5,2478.4,0.76057912]
[1730704118059,0.4257,2478.5,2478.4,1.16431912]
[1730704118554,0.4257,2478.5,2478.4,1.16429237]
[1730704119161,0.82943,2478.5,2478.4,1.16429237]
[1730704120676,0.82943,2478.5,2478.4,0.40374]
[1730704120962,0.82943,2478.5,2478.4,1.16423779]
[1730704121754,0.82943,2478.5,2478.4,0.76049779]
[1730704121968,0.82943,2478.5,2478.4,0.59939888]
[1730704123763,0.40378,2478.2,2478.1,0.4205]
[1730704124065,0.40378,2478.2,2478.1,0.7606881]
[1730704124264,4.43898,2478.2,2478.1,0.76075974]
[1730704124459,5.30108,2478.2,2478.1,0.76075974]
[1730704127268,1.26588,2478.2,2478.1,0.76075974]
[1730704127570,0.8621,2478.2,2477.7,1.3516]
[1730704127777,1.91533065,2478.1,2477.8,1.72088682]
[1730704127963,1.85855065,2477.9,2477.7,0.85955]
[1730704128159,1.85855065,2477.9,2477.8,1.72110745]
[1730704128364,1.45473065,2477.9,2477.8,2.12494745]
[1730704129172,1.45473065,2477.9,2477.8,1.16503327]
[1730704129367,1.45473065,2477.9,2477.8,2.12539854]
[1730704129866,1.45473065,2477.9,2477.8,2.12540809]
[1730704130073,1.45473065,2477.9,2477.8,1.16503327]
[1730704130372,1.45473065,2477.9,2477.8,0.76119327]
[1730704130569,1.85855065,2477.9,2477.8,0.76119327]
[1730704131073,1.45473065,2477.9,2477.8,0.76119327]
[1730704132071,1.45473065,2477.9,2477.8,1.16503327]
[1730704132279,2.31913065,2478.1,2477.9,0.40382]
[1730704132579,2.31913065,2478.1,2478.0,0.599965]
[1730704133076,6.35433065,2478.1,2478.0,0.599965]
[1730704133480,6.35433065,2478.1,2478.0,1.032265]
[1730704134173,6.35433065,2478.1,2478.0,0.599965]
[1730704137280,5.89373065,2478.1,2478.0,0.599965]
[1730704137688,6.34723065,2478.1,2478.0,0.599965]
[1730704138289,5.94343065,2478.1,2477.8,0.40383]
[1730704138487,0.40381,2478.0,2477.9,0.76141429]
[1730704138793,0.40381,2478.0,2477.9,0.76142554]
[1730704142001,0.85641,2478.0,2477.9,0.76142554]
[1730704143081,0.85641,2478.0,2477.9,0.60028967]
[1730704143291,0.85641,2478.0,2477.9,0.7614434]
[1730704144588,0.85641,2478.0,2477.9,0.60041996]
[1730704144792,0.85641,2478.0,2477.9,0.76158978]
[1730704146094,0.85641,2478.0,2477.9,0.76149042]
[1730704147395,4.89161,2478.0,2477.9,0.76149042]
[1730704147594,4.89161,2478.0,2477.9,0.6003206]
[1730704147890,0.40387,2477.7,2477.5,3.61168]
[1730704148096,0.4251,2477.6,2477.5,3.61168]
[1730704148294,0.4251,2477.6,2477.5,4.93047829]
[1730704148594,1.28017,2477.6,2477.5,4.93047561]
[1730704148805,0.8763,2477.6,2477.5,4.37346506]
[1730704149095,1.28017,2477.6,2477.5,4.37346506]
[1730704149896,0.4251,2477.6,2477.5,4.37346506]
[1730704150092,1.45473065,2477.7,2477.5,5.3342161]
[1730704150289,1.45473065,2477.7,2477.6,0.76177506]
[1730704150290,1.85859065,2477.7,2477.6,0.76177506]
[1730704151592,1.85859065,2477.7,2477.5,3.61169]
[1730704151797,1.85859065,2477.7,2477.6,0.76153805]
[1730704152396,1.85859065,2477.7,2477.6,0.60036603]
[1730704156400,0.40386,2477.7,2477.6,1.00423603]
[1730704156995,0.40386,2477.7,2477.6,0.60036603]
[1730704157399,0.82236,2477.7,2477.6,0.60036603]
[1730704158101,0.82236,2477.7,2477.6,1.00423603]
[1730704158301,0.82236,2477.7,2477.6,0.60036603]
[1730704158497,0.82236,2477.7,2477.6,1.00423603]
[1730704158699,0.82236,2477.7,2477.6,0.60036603]
[1730704158901,0.82236,2477.7,2477.6,0.60020575]
[1730704159205,0.40387,2477.6,2477.5,0.40388]
[1730704159507,0.40387,2477.6,2477.5,1.16521108]
[1730704160001,0.4185,2477.7,2477.5,1.16521108]
[1730704160201,0.40387,2477.6,2477.5,0.40388]
[1730704160402,0.40387,2477.6,2477.5,1.16520474]
[1730704162401,0.40387,2477.6,2477.5,1.0041338]
[1730704162802,0.40387,2477.6,2477.5,1.16525974]
[1730704167000,2.27709065,2477.7,2477.5,1.16525974]
[1730704167201,2.27709065,2477.7,2477.6,0.76137974]
[1730704169413,2.27709065,2477.7,2477.5,0.40388]
[1730704169601,2.27709065,2477.7,2477.6,0.60095831]
[1730704169906,2.27709065,2477.7,2477.6,0.76227338]
[1730704170506,2.27709065,2477.7,2477.6,0.76230857]
[1730704171108,2.27709065,2477.7,2477.6,1.72401427]
[1730704173214,2.27709065,2477.7,2477.6,0.16139101]
[1730704173411,2.27709065,2477.7,2477.6,1.72472133]
[1730704176617,2.27709065,2477.7,2477.6,1.5633675]
[1730704176808,2.27709065,2477.7,2477.6,1.72476099]
[1730704178219,2.27709065,2477.7,2477.6,0.76268868]
[1730704180124,0.40389,2477.5,2477.4,0.8356]
[1730704180322,0.86048,2477.6,2477.4,0.99702553]
[1730704180528,0.86048,2477.6,2477.5,0.60140347]
[1730704180830,0.86048,2477.6,2477.5,1.72507456]
[1730704181125,0.86048,2477.6,2477.5,1.72505372]
[1730704181723,0.86048,2477.6,2477.5,2.12894372]
[1730704182023,0.86048,2477.6,2477.5,1.72505372]
[1730704183725,0.86048,2477.6,2477.5,1.72490049]
[1730704184024,0.4566,2477.6,2477.5,2.12879049]
[1730704184225,0.86047,2477.6,2477.5,2.12879049]
[1730704185024,0.86047,2477.6,2477.4,0.4039]
[1730704185225,0.86047,2477.6,2477.5,1.7250415]
[1730704187228,0.86047,2477.6,2477.4,0.40389]
[1730704187525,0.86047,2477.6,2477.5,1.7252721]
[1730704188429,4.89647,2477.6,2477.5,1.7252721]
[1730704190629,4.89647,2477.6,2477.5,0.16147298]
[1730704190816,4.89647,2477.6,2477.5,1.72581987]
[1730704191020,4.89647,2477.6,2477.2,1.90926712]
[1730704191021,4.4926,2477.6,2477.2,1.90926712]
[1730704191225,0.86047,2477.6,2477.5,0.96271403]
[1730704191433,6.35120065,2477.6,2477.5,0.76321955]
[1730704193729,2.31520065,2477.6,2477.5,0.76321955]
[1730704197736,0.40391,2477.4,2477.2,0.85363]
[1730704197920,0.40391,2477.4,2477.3,2.12888677]
[1730704198122,0.40391,2477.4,2477.3,1.72496677]
[1730704200724,1.85864065,2477.4,2477.3,1.72496677]
[1730704201124,1.85864065,2477.4,2477.3,0.76259479]
[1730704201322,0.40394,2477.2,2477.1,3.2078]
[1730704201522,1.85867065,2477.2,2477.1,4.77183726]
[1730704201835,1.85867065,2477.2,2477.1,4.93294837]
[1730704202331,1.4,2477.4,2477.2,0.40393]
[1730704202634,0.945,2477.5,2477.3,2.12860156]
[1730704202820,1.3677,2477.5,2477.4,0.76237312]
[1730704203021,3.22633065,2477.5,2477.4,0.76237312]
[1730704203626,3.22633065,2477.5,2477.4,0.76235578]
[1730704207126,0.40392,2477.3,2477.2,0.8876]
[1730704207327,1.85865065,2477.3,2477.2,2.61171721]
[1730704208126,1.85865065,2477.3,2477.2,3.01565721]
[1730704208326,1.45473065,2477.3,2477.2,3.01565721]
[1730704209436,1.85865065,2477.3,2477.2,3.01565721]
[1730704209729,1.45473065,2477.3,2477.2,3.01565721]
[1730704210235,1.45473065,2477.3,2477.2,2.61171721]
[1730704210433,1.85865065,2477.3,2477.2,2.61171721]
[1730704210637,1.85865065,2477.3,2477.2,0.8876]
[1730704210840,1.85865065,2477.3,2477.2,2.6116598]
[1730704211034,1.85865065,2477.3,2477.2,2.611671]
[1730704211528,1.85865065,2477.3,2477.2,2.45067026]
[1730704211732,1.85865065,2477.3,2477.2,1.72406775]
[1730704212240,1.85865065,2477.3,2477.2,0.76217836]
[1730704212838,1.85865065,2477.3,2477.2,0.76220148]
[1730704214229,1.45473065,2477.3,2477.0,1.29726]
[1730704214429,0.40396,2477.1,2477.0,1.29726]
[1730704214630,0.40396,2477.1,2477.0,3.02111002]
[1730704215034,0.40396,2477.1,2477.0,1.72385002]
[1730704215332,1.30686,2477.1,2477.0,1.72385002]
[1730704215932,1.30686,2477.1,2477.0,0.76207892]
[1730704217635,0.40399,2476.9,2476.8,0.8315]
[1730704217938,1.85872065,2476.9,2476.8,2.5550709]
[1730704218632,1.85872065,2476.9,2476.8,2.55505703]
[1730704218832,1.45473065,2476.9,2476.8,2.55505703]
[1730704219340,1.45473065,2476.9,2476.8,1.59341813]
[1730704219538,1.45473065,2476.9,2476.8,2.55496025]
[1730704220536,1.85872065,2476.9,2476.8,2.55496025]
[1730704220739,1.85872065,2476.9,2476.8,1.59341813]
[1730704221137,1.85872065,2476.9,2476.8,0.99237209]
[1730704221348,1.45473065,2476.9,2476.8,1.59328839]
[1730704221537,1.45473065,2476.9,2476.8,1.59331306]
[1730704222149,1.85872065,2476.9,2476.8,1.59331306]
[1730704222441,1.45473065,2476.9,2476.8,1.59331306]
[1730704222643,1.85872065,2476.9,2476.8,1.59331306]
[1730704222844,1.87983065,2476.9,2476.8,1.59331306]
[1730704223742,1.87983065,2476.9,2476.8,1.5931855]
[1730704224345,1.45473065,2477.0,2476.8,1.1891855]
[1730704224645,1.45473065,2476.9,2476.8,0.8315]
[1730704224945,1.45473065,2476.9,2476.8,1.59301226]
[1730704227349,1.85872065,2476.9,2476.8,1.18901226]
[1730704227547,1.45473065,2476.9,2476.8,1.59301226]
[1730704228249,1.45473065,2476.9,2476.8,1.59308399]
[1730704231146,1.45473065,2476.9,2476.8,1.18908399]
[1730704231350,1.85872065,2476.9,2476.8,1.18908399]
[1730704231550,1.85872065,2476.9,2476.8,1.02821157]
[1730704231952,1.85872065,2476.9,2476.8,0.4275]
[1730704232253,1.85872065,2476.9,2476.8,1.02828174]
[1730704232447,6.84032065,2476.9,2476.8,0.60078174]
[1730704232653,0.40403,2476.7,2476.5,0.40405]
[1730704232948,2.33643065,2476.6,2476.5,0.40405]
[1730704233248,2.33643065,2476.6,2476.5,0.76183545]
[1730704233249,3.16247065,2476.6,2476.5,0.76183545]
[1730704233652,2.75843065,2476.6,2476.5,1.16588545]
[1730704234053,3.16247065,2476.6,2476.5,0.76183545]
[1730704234253,0.422,2476.6,2476.5,0.76183545]
[1730704234451,1.45473065,2476.9,2476.5,4.79943545]
[1730704234753,2.80272065,2476.9,2476.7,0.40401]
[1730704234953,3.26532065,2476.9,2476.8,0.6009096]
[1730704235354,1.91733065,2476.9,2476.8,0.6009096]
[1730704235553,2.32132065,2476.9,2476.8,0.6009096]
[1730704236558,1.91083065,2477.0,2476.9,0.40399]
[1730704236850,1.45473065,2477.0,2476.9,1.16573253]
[1730704237358,4.5774,2477.2,2477.1,0.40396]
[1730704237359,1.88033065,2477.2,2477.1,0.40396]
[1730704237552,1.88033065,2477.2,2477.1,1.16570253]
[1730704237752,2.28427065,2477.2,2477.1,0.76174253]
[1730704238263,2.28427065,2477.2,2477.1,0.6009096]
[1730704239766,6.32107065,2477.2,2477.1,0.6009096]
[1730704240453,0.40397,2477.1,2476.8,0.8604]
[1730704240653,1.45473065,2477.0,2476.9,1.16550887]
[1730704240950,1.88763065,2477.0,2476.9,1.16550887]
[1730704241863,1.88763065,2477.0,2476.9,0.40398]
[1730704242054,2.29160065,2477.0,2476.9,0.7615097]
[1730704242363,1.88763065,2477.0,2476.9,1.1654997]
[1730704243846,1.88763065,2477.0,2476.9,0.5648221]
[1730704244051,1.88763065,2477.0,2476.9,1.16558491]
[1730704244459,2.29160065,2477.0,2476.9,0.76159491]
[1730704245264,2.29160065,2477.0,2476.9,0.76163169]
[1730704246253,3.30088607,2477.0,2476.9,0.76163169]
[1730704248665,6.50868607,2477.0,2476.9,0.60076281]
[1730704250860,10.54628607,2477.0,2476.9,0.60076281]
[1730704251561,10.54628607,2477.0,2476.3,1.91261712]
[1730704251562,0.40406,2476.5,2476.3,1.91261712]
[1730704251756,0.4621,2476.4,2476.3,1.50853712]
[1730704251957,1.30087,2476.4,2476.3,1.72713959]
[1730704252165,1.72007,2476.4,2476.3,1.72713959]
[1730704253767,1.72007,2476.4,2476.3,0.76333927]
[1730704255959,1.72007,2476.4,2476.3,0.76339206]
[1730704257762,5.75847,2476.4,2476.3,0.6023752]
[1730704257963,0.40412,2476.1,2475.9,0.85704]
[1730704258165,2.30693065,2476.0,2475.9,0.4529]
[1730704258373,2.73313065,2476.0,2475.9,1.21721895]
[1730704258663,2.73313065,2476.0,2475.9,0.76431895]
[1730704258664,8.6311913,2476.0,2475.9,0.76431895]
[1730704258865,9.5741913,2476.0,2475.9,0.60333819]
[1730704259068,0.40417,2475.8,2475.6,3.61199]
[1730704259265,1.45473065,2475.7,2475.6,3.2078]
[1730704259469,1.45473065,2475.7,2475.6,3.97193379]
[1730704259970,1.85891065,2475.7,2475.6,3.97193379]
[1730704260278,1.85891065,2475.7,2475.6,3.81099766]
[1730704261568,1.45473065,2475.7,2475.2,1.29586]
[1730704261770,1.45473065,2475.3,2475.2,1.29586]
[1730704262062,1.45473065,2475.3,2475.2,1.45674783]
[1730704262269,1.85898065,2475.3,2475.1,0.4276]
[1730704262467,0.40427,2475.2,2475.1,0.4276]
[1730704262663,1.85899065,2475.3,2475.1,0.4276]
[1730704262870,1.45473065,2475.3,2475.0,0.4386]
[1730704263071,4.1508,2475.5,2475.0,0.4386]
[1730704263072,1.45473065,2475.1,2475.0,0.8429]
[1730704264168,1.45473065,2475.1,2474.9,3.2078]
[1730704264369,1.45473065,2475.1,2475.0,0.4043]
[1730704264568,1.45473065,2475.1,2475.0,1.2781]
[1730704266176,2.46479084,2475.1,2475.0,1.2781]
[1730704266471,2.46479084,2475.1,2475.0,1.7033]
[1730704268567,2.46479084,2475.1,2475.0,1.299]
[1730704268767,2.46479084,2475.1,2475.0,1.7033]
[1730704273367,2.46479084,2475.1,2475.0,1.2759]
[1730704275681,2.86907084,2475.1,2474.9,0.40431]
[1730704275878,0.40434,2474.8,2474.6,0.84996]
[1730704276074,1.89833065,2474.7,2474.4,0.8872]
[1730704276277,1.45473065,2474.5,2474.4,1.2916]
[1730704277278,1.45473065,2474.6,2474.5,0.40438]
[1730704277984,1.45473065,2474.7,2474.4,0.8872]
[1730704278176,4.47121,2475.0,2474.4,0.8872]
[1730704278177,1.45473065,2475.0,2474.6,3.2078]
[1730704278373,1.45473065,2475.0,2474.9,0.40431]
[1730704279385,1.01006019,2475.1,2475.0,0.4043]
[1730704283275,1.01006019,2475.1,2475.0,7.6521]
[1730704284774,1.01006019,2475.1,2475.0,3.6121]
[1730704285282,1.01006019,2475.1,2475.0,3.2078]
[1730704285486,1.41434019,2475.1,2475.0,3.2078]
[1730704285681,5.45434019,2475.1,2475.0,3.2078]
[1730704286985,5.45434019,2475.1,2474.9,0.40431]
[1730704287179,0.4504,2475.0,2474.9,0.40431]
[1730704287390,0.8547,2475.0,2474.8,0.40432]
[1730704287693,0.4271,2474.9,2474.8,0.40432]
[1730704292490,2.02012038,2475.1,2475.0,0.4043]
[1730704294291,2.42440038,2475.1,2475.0,0.4043]
[1730704294493,2.42440038,2475.1,2474.7,0.4512]
[1730704294700,2.42440038,2475.1,2474.9,0.40431]
[1730704295102,2.42440038,2475.1,2474.7,0.4512]
[1730704295103,2.02012038,2475.1,2474.7,0.4512]
[1730704295502,2.02012038,2475.1,2475.0,0.4043]
[1730704297402,3.03018057,2475.1,2475.0,0.4043]
[1730704298607,3.43446057,2475.1,2475.0,0.4043]
[1730704299303,4.48663067,2475.1,2475.0,0.4043]
[1730704300202,4.48663067,2475.1,2475.0,1.00582706]
[1730704304204,4.48663067,2475.1,2475.0,1.97248353]
[1730704305603,4.48663067,2475.1,2475.0,0.4043]
[1730704307593,3.03018057,2475.1,2475.0,0.4043]
[1730704308200,4.48663067,2475.1,2475.0,1.2531]
[1730704308394,4.48663067,2475.1,2475.0,1.85199609]
[1730704308594,4.48663067,2475.1,2475.0,5.89199609]
[1730704308797,4.48663067,2475.1,2475.0,5.2931]
[1730704309201,4.48663067,2475.1,2475.0,1.2531]
[1730704309807,4.48663067,2475.1,2475.0,1.41496896]
[1730704310101,4.48663067,2475.1,2475.0,1.2531]
[1730704310306,4.48663067,2475.1,2475.0,2.97226324]
[1730704310506,4.48663067,2475.1,2475.0,1.41498187]
[1730704310804,4.48663067,2475.1,2475.0,2.97228829]
[1730704311301,3.03018057,2475.1,2475.0,2.97228829]
[1730704311699,4.04024076,2475.1,2475.0,2.97228829]
[1730704312102,4.04024076,2475.1,2475.0,2.97496037]
[1730704313700,4.04024076,2475.1,2475.0,2.8130785]
[1730704313903,4.04024076,2475.1,2475.0,2.97495527]
[1730704314597,5.92979086,2475.1,2475.0,2.55055527]
[1730704314796,6.82199086,2475.1,2475.0,2.55055527]
[1730704317299,6.82199086,2475.1,2475.0,0.8287]
[1730704317497,4.04024076,2475.1,2475.0,6.59070094]
[1730704317695,4.04024076,2475.1,2475.0,8.84613011]
[1730704317902,4.04024076,2475.1,2475.0,10.78318814]
[1730704318094,4.04024076,2475.1,2475.0,11.30498986]
[1730704319404,4.04024076,2475.1,2475.0,9.72755102]
[1730704320707,4.04024076,2475.1,2475.0,10.28128637]
[1730704321108,4.04024076,2475.1,2475.0,9.50795822]
[1730704321302,4.04024076,2475.1,2475.0,13.8311578]
[1730704321503,4.04024076,2475.1,2475.0,13.99291848]
[1730704321710,4.04024076,2475.1,2475.0,13.9929212]
[1730704322009,4.04024076,2475.1,2475.0,12.0558663]
[1730704322206,4.04024076,2475.1,2475.0,13.48660777]
[1730704322408,4.04024076,2475.1,2475.0,14.00478306]
[1730704322597,4.04024076,2475.1,2475.0,14.51037774]
[1730704323405,4.04024076,2475.1,2475.0,11.08468031]
[1730704323699,4.04024076,2475.1,2475.0,14.51035344]
[1730704324006,4.04024076,2475.1,2475.0,13.99203066]
[1730704324206,4.04024076,2475.1,2475.0,13.99202812]
[1730704324503,4.04024076,2475.1,2475.0,9.44643852]
[1730704324704,5.49669086,2475.1,2475.0,8.01569705]
[1730704325302,5.49669086,2475.1,2475.0,6.53216737]
[1730704326605,5.49669086,2475.1,2475.0,5.33289999]
[1730704326810,5.49669086,2475.1,2475.0,4.7332663]
[1730704327013,5.49669086,2475.1,2475.0,5.33321854]
[1730704327412,5.49669086,2475.1,2475.0,2.12541854]
[1730704330614,5.49669086,2475.1,2475.0,2.12541848]
[1730704333422,5.49669086,2475.1,2475.0,3.78776873]
[1730704333824,5.49669086,2475.1,2475.0,2.58661848]
[1730704334022,5.49669086,2475.1,2475.0,2.58882927]
[1730704334323,5.49669086,2475.1,2475.0,3.79010197]
[1730704335317,5.49669086,2475.1,2475.0,2.12767199]
[1730704336318,4.04024076,2475.1,2475.0,3.3288241]
[1730704336511,4.04024076,2475.1,2475.0,3.7735241]
[1730704337221,4.04024076,2475.1,2475.0,2.57237199]
[1730704337421,4.04024076,2475.1,2475.0,3.77353206]
[1730704339421,4.04024076,2475.1,2475.0,4.22413206]
[1730704340329,6.50675105,2475.1,2475.0,3.32883206]
[1730704340919,6.50675105,2475.1,2475.0,0.4043]
[1730704341222,6.50675105,2475.1,2475.0,3.33283703]
[1730704341426,6.50675105,2475.1,2475.0,2.12991956]
[1730704342920,6.50675105,2475.1,2475.0,3.33290415]
[1730704343118,6.50675105,2475.1,2475.0,2.12991956]
[1730704343332,6.50675105,2475.1,2475.0,1.72561956]
[1730704343523,6.50675105,2475.1,2475.0,2.12991956]
[1730704344424,6.50675105,2475.1,2475.0,1.9708018]
[1730704344622,6.50675105,2475.1,2475.0,2.13267301]
[1730704344931,6.50675105,2475.1,2475.0,2.1326338]
[1730704345222,6.50675105,2475.1,2475.0,2.13256092]
[1730704348126,6.50675105,2475.1,2475.0,2.13334039]
[1730704349526,6.50675105,2475.1,2475.0,3.33884442]
[1730704350429,5.05030095,2475.1,2475.0,3.33884442]
[1730704351031,6.50675105,2475.1,2475.0,3.33884442]
[1730704351727,6.50675105,2475.1,2475.0,8.28345041]
[1730704351728,5.05030095,2475.1,2475.0,8.28345041]
[1730704351920,6.06036114,2475.1,2475.0,10.86947834]
[1730704352127,6.06036114,2475.1,2475.0,10.90595852]
[1730704352527,6.06036114,2475.1,2475.0,11.53696891]
[1730704352835,7.51681124,2475.1,2475.0,11.53696891]
[1730704353131,7.51681124,2475.1,2475.0,4.40627669]
[1730704353326,7.51681124,2475.1,2475.0,8.44627669]
[1730704354333,7.51681124,2475.1,2475.0,11.65407669]
[1730704354830,7.51681124,2475.1,2475.0,13.09091565]
[1730704355128,7.51681124,2475.1,2475.0,11.65407669]
[1730704355336,7.51681124,2475.1,2475.0,8.71208958]
[1730704355533,7.51681124,2475.1,2475.0,11.65395685]
[1730704355730,7.51681124,2475.1,2475.0,11.49203911]
[1730704356034,7.51681124,2475.1,2475.0,11.65396135]
[1730704357227,7.51681124,2475.1,2475.0,7.61396135]
[1730704357628,7.51681124,2475.1,2475.0,4.40616135]
[1730704357834,7.51681124,2475.1,2475.0,7.61396135]
[1730704358639,7.51681124,2475.1,2475.0,4.40616135]
[1730704358831,7.51681124,2475.1,2475.0,11.65396135]
[1730704359029,7.51681124,2475.1,2475.0,4.83401182]
[1730704359332,7.51681124,2475.1,2475.0,7.58967319]
[1730704360631,7.51681124,2475.1,2475.0,4.38187319]
[1730704360838,7.51681124,2475.1,2475.0,7.58967319]
[1730704362332,7.51681124,2475.1,2475.0,4.38187319]
[1730704362734,7.51681124,2475.1,2475.0,4.38244815]
[1730704363234,7.51681124,2475.1,2475.0,7.59024815]
[1730704364843,7.51681124,2475.1,2475.0,4.38244815]
[1730704365439,7.51681124,2475.1,2475.0,7.59024815]
[1730704366044,7.51681124,2475.1,2475.0,4.38244815]
[1730704366353,7.51681124,2475.1,2475.0,4.38245951]
[1730704366648,7.51681124,2475.1,2475.0,7.5905728]
[1730704367541,6.06036114,2475.1,2475.0,7.5905728]
[1730704367735,6.06036114,2475.1,2475.0,4.3827728]
[1730704368042,6.06036114,2475.1,2475.0,4.88839066]
[1730704368244,6.06036114,2475.1,2475.0,4.3827728]
[1730704368448,6.06036114,2475.1,2475.0,4.88839034]
[1730704368753,6.06036114,2475.1,2475.0,6.32621421]
[1730704369541,6.06036114,2475.1,2475.0,4.3827728]
[1730704369741,7.51681124,2475.1,2475.0,1.62630528]
[1730704369953,7.51681124,2475.1,2475.0,3.323294]
[1730704370645,7.51681124,2475.1,2475.0,4.38328358]
[1730704371151,7.51681124,2475.1,2475.0,3.323294]
[1730704373359,7.51681124,2475.1,2475.0,0.4043]
[1730704373551,7.51681124,2475.1,2475.0,3.32360804]
[1730704374853,7.51681124,2475.1,2475.0,2.12481233]
[1730704375046,7.98001124,2475.1,2475.0,3.16154954]
[1730704375249,7.98001124,2475.1,2475.0,3.32360099]
[1730704375958,7.98001124,2475.1,2475.0,3.32355109]
[1730704377055,7.98001124,2475.1,2475.0,0.4043]
[1730704377359,7.98001124,2475.1,2475.0,3.3234213]
[1730704377552,7.98001124,2475.1,2475.0,2.12468852]
[1730704377758,7.98001124,2475.1,2475.0,3.32338945]
[1730704377946,7.98001124,2475.1,2475.0,2.12468852]
[1730704378150,7.98001124,2475.1,2475.0,3.32338789]
[1730704378357,7.98001124,2475.1,2475.0,2.12468473]
[1730704378546,7.98001124,2475.1,2475.0,3.32335257]
[1730704378751,7.98001124,2475.1,2475.0,2.12467969]
[1730704378954,7.98001124,2475.1,2475.0,3.32334909]
[1730704379258,7.98001124,2475.1,2475.0,2.12467969]
[1730704379559,7.98001124,2475.1,2475.0,3.32332632]
[1730704380268,7.98001124,2475.1,2475.0,3.32332556]
[1730704380767,7.98001124,2475.1,2475.0,3.32331843]
[1730704380975,7.98001124,2475.1,2475.0,3.75881843]
[1730704381367,7.98001124,2475.1,2475.0,3.75878898]
[1730704382367,7.98001124,2475.1,2475.0,4.81877856]
[1730704383078,7.98001124,2475.1,2475.0,5.24607856]
[1730704386473,7.98001124,2475.1,2475.0,5.2458732]
[1730704386474,7.51681124,2475.1,2475.0,5.2458732]
[1730704386781,6.06036114,2475.1,2475.0,5.2458732]
[1730704386984,6.06036114,2475.1,2475.0,5.24587246]
[1730704387670,7.51681124,2475.1,2475.0,5.24587246]
[1730704387878,7.51681124,2475.1,2475.0,4.18588288]
[1730704388481,7.51681124,2475.1,2475.0,3.75858288]
[1730704388680,7.51681124,2475.1,2475.0,3.32308288]
[1730704389077,7.51681124,2475.1,2475.0,3.32319928]
[1730704389275,7.51681124,2475.1,2475.0,2.12455609]
[1730704389968,7.51681124,2475.1,2475.0,1.72025609]
[1730704390173,7.51681124,2475.1,2475.0,1.7202696]
[1730704391075,7.51681124,2475.1,2475.0,2.1245696]
[1730704392282,7.51681124,2475.1,2475.0,1.7202696]
[1730704392682,7.51681124,2475.1,2475.0,2.1245696]
[1730704393075,7.51681124,2475.1,2475.0,1.7202696]
[1730704393679,7.92109124,2475.1,2475.0,1.7202696]
[1730704394178,7.51681124,2475.1,2475.0,1.72026305]
[1730704394786,7.51681124,2475.1,2475.0,2.12456305]
[1730704394979,7.92109124,2475.1,2475.0,1.72026305]
[1730704397286,7.92109124,2475.1,2475.0,1.55811788]
[1730704397483,7.92109124,2475.1,2475.0,1.72019068]
[1730704400193,7.51681124,2475.1,2475.0,1.72019068]
[1730704400491,7.92109124,2475.1,2475.0,1.72019068]
[1730704400792,7.51681124,2475.1,2475.0,2.11029531]
[1730704403790,6.06036114,2475.1,2475.0,3.29791897]
[1730704404000,6.06036114,2475.1,2475.0,3.80353213]
[1730704404207,6.06036114,2475.1,2475.0,3.29779776]
[1730704404388,6.06036114,2475.1,2475.0,5.24115495]
[1730704404689,6.06036114,2475.1,2475.0,6.30184878]
[1730704405291,6.06036114,2475.1,2475.0,6.81859379]
[1730704405496,6.06036114,2475.1,2475.0,16.15422571]
[1730704405687,6.06036114,2475.1,2475.0,16.66678832]
[1730704406195,6.06036114,2475.1,2475.0,7.96245825]
[1730704406390,6.06036114,2475.1,2475.0,6.83214555]
[1730704406592,6.06036114,2475.1,2475.0,5.79622041]
[1730704406789,6.06036114,2475.1,2475.0,4.35844197]
[1730704406989,6.06036114,2475.1,2475.0,4.86406651]
[1730704407191,6.06036114,2475.1,2475.0,6.30180626]
[1730704407504,6.06036114,2475.1,2475.0,9.50960626]
[1730704407696,6.06036114,2475.1,2475.0,8.85212889]
[1730704407889,6.06036114,2475.1,2475.0,8.09642294]
[1730704408089,6.06036114,2475.1,2475.0,6.8317886]
[1730704408494,6.06036114,2475.1,2475.0,5.240798]
[1730704411292,6.06036114,2475.1,2475.0,4.73485405]
[1730704411496,6.06036114,2475.1,2475.0,6.3010432]
[1730704411697,6.06036114,2475.1,2475.0,7.8920338]
[1730704411997,6.06036114,2475.1,2475.0,8.28790213]
[1730704412299,6.06036114,2475.1,2475.0,7.32817339]
[1730704412694,6.06036114,2475.1,2475.0,10.53597339]
[1730704414296,6.06036114,2475.1,2475.0,12.12641695]
[1730704414499,6.06036114,2475.1,2475.0,11.49515509]
[1730704416695,6.06036114,2475.1,2475.0,16.16641695]
[1730704416897,6.06036114,2475.1,2475.0,14.57597339]
[1730704417502,6.06036114,2475.1,2475.0,14.07831962]
[1730704418406,6.06036114,2475.1,2475.0,11.185345]
[1730704418699,6.06036114,2475.1,2475.0,14.58230722]